Cogmind - Beta 14 @@@ ROGUE MODE // 2024.08.12 @ 17:39:51 Player: Lunace Result: Destroyed by NW-XAI(R) with Subdweller Machine Gun Performance ------------- Evolutions (0) 0 Regions Visited (2) 400 Robots Destroyed (20) 100 Value Destroyed (630) 630 Prototype IDs (13) 260 Alien Tech Used (0) 0 Bonus (0) 0 TOTAL SCORE: 1390 Bonus ------- None Cogmind --------- Core Integrity 0/250 Matter 159/300 Energy 250/250 System Corruption 0% Temperature Cool (0) Movement Treading (160) Location -10/Subcaves Parts ------- > --- POWER (1) -------- Ion Engine > --- PROPULSION (2) --- Light Treads Light Treads > --- UTILITY (2) ------ Scrap Shield > --- WEAPON (2) ------- Autogun Barrage Gun > --- INVENTORY (5) ---- Flightbrick Multitool Peak State ------------ > --- POWER ------------ Ion Engine > --- PROPULSION ------- Light Treads Light Treads > --- UTILITY ---------- Scrap Shield > --- WEAPON ----------- Autogun Barrage Gun > --- INVENTORY -------- Flightbrick Multitool [Rating: 15] Favorites ----------- Power Ion Engine Engine Ion Engine Propulsion Light Treads Treads Light Treads Utility Small Storage Unit Device Seismic Detector Storage Small Storage Unit Processor Targeting Computer Protection Scrap Shield Weapon Autogun Energy Gun Medium Laser Ballistic Gun Autogun Launcher Grenade Launcher Build | -11 -10 -10 ------- Run | Yrd Mat Sub Slots Evolved . | . . . Power . | . . . Propulsion . | . . . Utility . | . . . Weapon . | . . . Parts Attached 24 | 7 6 11 Power 4 | 1 1 2 Engine 4 | 1 1 2 Core . | . . . Reactor . | . . . Propulsion 6 | 2 1 3 Treads 6 | 2 1 3 Leg . | . . . Wheel . | . . . Hover . | . . . Flight . | . . . Utility 4 | 2 1 1 Device 1 | 1 . . Storage 1 | 1 . . Processor 1 | . 1 . Hackware . | . . . Protection 1 | . . 1 Artifact . | . . . Weapon 10 | 2 3 5 Energy Gun 1 | 1 . . Energy Cannon . | . . . Ballistic Gun 7 | 1 2 4 Ballistic Cannon . | . . . Launcher 2 | . 1 1 Special Weapon . | . . . Impact Weapon . | . . . Slashing Weapon . | . . . Piercing Weapon . | . . . Special Melee Weapon . | . . . Unidentified Prototypes . | . . . Parts Lost 2 | . 1 1 Power . | . . . Propulsion . | . . . Utility 1 | . 1 . Weapon 1 | . . 1 Highest Loss Streak 1 | . 1 1 To Critical Strikes . | . . . Average Slot Usage (%) 92 | . 97 90 Engine 14 | . 14 14 Treads 28 | . 28 28 Device 1 | . 4 . Storage 7 | . 14 4 Processor 5 | . 7 4 Protection 6 | . . 9 Energy Gun 1 | . 5 . Ballistic Gun 26 | . 22 27 Peak Build Rating 15 | 7 10 15 Average Rating 10 | 5 8 11 On Entrance 5 | . 7 10 Naked Turns . | . . . Heaviest Build 29 | 15 16 29 Greatest Support 40 | 40 40 40 Greatest Overweight (x) 3 | 3 . . Average Overweight (x) . | . . . Largest Inventory Capacity 8 | 8 8 8 Average Capacity 6 | 7 8 6 Most Carried 8 | 4 8 8 Average Carried 6 | 2 7 5 Final Capacity 8 | 8 8 5 Final Carried 8 | 4 8 5 Class Distribution -------------------- 100% | Mutant Dominant Class ---------------- Mutant | -10/Materials Mutant | -10/Subcaves Resources | -11 -10 -10 ----------- Run | Yrd Mat Sub Matter Collected 1012 | 266 122 624 Remotely . | . . . Salvage Created 850 | 30 323 497 Parts 49 | 3 15 31 Haulers Intercepted . | . . . Recyclers Shooed . | . . . Parts Field Recycled . | . . . Retrieved Matter . | . . . Parts Self-Destructed . | . . . Prevented . | . . . Kills | -11 -10 -10 ------- Run | Yrd Mat Sub Combat Hostiles Destroyed 18 | . 9 9 Guns 14 | . 6 8 AOE 4 | . 3 1 Classes Destroyed 6 | 1 3 2 Tunneler 1 | 1 . . Recycler 1 | . 1 . Swarmer 3 | . 3 . Grunt 6 | . 6 . Artisan 1 | . . 1 Subdweller 9 | . . 9 Best Kill Streak 4 | 1 4 1 Combat Bots Only 4 | . 4 1 Max Kills in Single Turn 2 | 1 2 1 Gunslinging . | . . . Exploded 2 | . 2 1 Melee . | . . . Uniques/NPCs Destroyed . | . . . Combat | -11 -10 -10 -------- Run | Yrd Mat Sub Hostile Shots Fired 105 | . 39 66 Missed 29 | . 7 22 Damage Taken 1367 | . 411 956 Core 251 | . 60 191 Absorbed by Shields . | . . . Core Remaining (%) 100 | 100 . . Volleys Fired 111 | 2 23 86 Largest 2 | 2 2 2 Hottest 70 | 70 70 53 Shots Fired 198 | 4 42 152 Gun 192 | 4 38 150 Cannon . | . . . Launcher 6 | . 4 2 Special . | . . . Kinetic 171 | 2 19 150 Thermal 21 | 2 19 . Explosive 6 | . 4 2 Electromagnetic . | . . . Robot Hit Streak 30 | 1 12 30 Robot Miss Streak 3 | 2 2 3 Penetration Max . | . . . Secondary Targets 1 | . 1 . Max Gunslinging Chain 1 | . 1 . Shots Hit Robots 131 | 1 28 102 Core Hits 42 | 1 19 22 Critical Kills . | . . . Critical Parts Destroyed . | . . . Critical Strikes . | . . . Melee Attacks . | . . . Impact . | . . . Slashing . | . . . Piercing . | . . . Sneak Attacks . | . . . Combat Hostiles . | . . . Follow-up Attacks . | . . . Damage Inflicted 2132 | 12 599 1521 Guns 1669 | 12 355 1302 Cannons . | . . . Explosions 463 | . 244 219 Melee . | . . . Ramming . | . . . Kinetic 1468 | . 166 1302 Thermal 201 | 12 189 . Explosive 463 | . 244 219 Electromagnetic . | . . . Impact . | . . . Slashing . | . . . Piercing . | . . . Highest Corruption . | . . . Average Corruption . | . . . Corruption Purged . | . . . Corruption Blocked . | . . . Overload Shots . | . . . Overflow Damage . | . . . Projectiles . | . . . Explosions . | . . . Melee . | . . . Knockbacks . | . . . Impact . | . . . Kinetic . | . . . Secondary . | . . . Self-Inflicted Damage 54 | . 54 . Shots 2 | . 2 . Rammed . | . . . Targets Rammed . | . . . Kicked . | . . . Crushed . | . . . Highest Temperature 174 | 18 174 . Average Temperature 80 | 10 86 . Received Heat Transfer 366 | . 183 183 Siege Activations . | . . . Robots Corrupted . | . . . Combat Hostiles . | . . . Parts Fried . | . . . Impact Corruptions . | . . . Robots Melted . | . . . Combat Hostiles . | . . . Parts Melted 1 | . 1 . Heat Transferred 592 | 37 555 . Parts Sabotaged . | . . . Parts Stolen . | . . . Parts Stripped . | . . . Power Chain Reactions . | . . . Alert | -11 -10 -10 ------- Run | Yrd Mat Sub Peak Influence 278 | 5 278 . Initial 3 | . 3 . Average 59 | . 66 . Maximum Alert Level 1 | . 1 . Low Security (%) 94 | 100 93 . Level 1 5 | . 6 . Level 2 . | . . . Level 3 . | . . . Level 4 . | . . . Level 5 . | . . . High Security . | . . . Max Security . | . . . Squads Dispatched 2 | . 2 . Investigation 2 | . 2 . Extermination . | . . . Reinforcement . | . . . Assault . | . . . Garrison . | . . . Intercept . | . . . Searches Triggered . | . . . Construction Impeded . | . . . Haulers Reinforced . | . . . Active Scanning Responses . | . . . Cargo Convoy Interrupts . | . . . Stealth | -11 -10 -10 --------- Run | Yrd Mat Sub Distress Signals 1 | . 1 . Communications Jammed . | . . . Distress Signals . | . . . Times Spotted 23 | . 11 12 Peak Tracking Total 6 | . 6 2 Tactical Retreats 1 | . 1 . Traps | -11 -10 -10 ------- Run | Yrd Mat Sub Traps Triggered 2 | . 1 1 Indirectly . | . . . Trap Hack Attempts . | . . . Triggered . | . . . Disarmed . | . . . Reprogrammed . | . . . Reused . | . . . Traps Extracted . | . . . Installed 1 | . . 1 Triggered . | . . . Machines | -11 -10 -10 ---------- Run | Yrd Mat Sub Machines Disabled 2 | . 1 1 Max in Single Turn 1 | . 1 1 Machines Repaired . | . . . Machines Dismantled . | . . . Machines Sabotaged . | . . . Overloaded Fab Kills . | . . . Hacking | -11 -10 -10 --------- Run | Yrd Mat Sub Machines Accessed 6 | . 5 1 Terminals 4 | . 4 . Fabricators . | . . . Repair Stations . | . . . Recycling Units 1 | . 1 . Scanalyzers . | . . . Garrison Access . | . . . Total Hacks 16 | . 15 1 Successful 8 | . 7 1 Failed 7 | . 7 . Catastrophic 2 | . 2 . Database Lockouts 1 | . 1 . Manual 12 | . 12 . Terminals 14 | . 14 . Fabricators . | . . . Repair Stations . | . . . Recycling Units 1 | . 1 . Scanalyzers . | . . . Garrison Access . | . . . Terminal Hacks 5 | . 4 1 Robot Analysis 1 | . 1 . Prototype ID Bank 1 | . 1 . Level Access Points 1 | . 1 . Branch Access Points 1 | . 1 . Derelict Proto ID Bank 1 | . . 1 Fabricator Hacks . | . . . Repair Station Hacks . | . . . Recycling Unit Hacks 1 | . 1 . Retrieve Components 1 | . 1 . Scanalyzer . | . . . Garrison Access Hacks . | . . . Unauthorized Hacks 2 | . 2 . Terminals 2 | . 2 . Botnet 2 | . 2 . Fabricators . | . . . Repair Stations . | . . . Recycling Units . | . . . Scanalyzers . | . . . Garrison Access . | . . . Data Cores Recovered . | . . . Used . | . . . Hacking Detections 4 | . 4 . Full Trace Events 1 | . 1 . Feedback Events . | . . . Feedback Blocked . | . . . Robot Schematics Acquired . | . . . Robots Built . | . . . Authchips . | . . . Time . | . . . Total Robot Build Rating . | . . . Part Schematics Acquired . | . . . Parts Built . | . . . Authchips . | . . . Time . | . . . Total Part Build Rating . | . . . Parts Repaired . | . . . Time . | . . . Parts Recycled . | . . . Recycled Matter . | . . . Retrieved Matter . | . . . Retrieved Components 2 | . 2 . Parts Scanalyzed . | . . . Part Schematics Acquired . | . . . Parts Damaged . | . . . Bothacking | -11 -10 -10 ------------ Run | Yrd Mat Sub Used RIF Installer . | . . . Robots Hacked . | . . . Non-combat . | . . . Combat . | . . . Robot Hacks Applied . | . . . Relay Couplers Released . | . . . Fabnet Peak Effective % . | . . . Robots Rewired . | . . . Allies Hacked . | . . . Hacks Repelled . | . . . Allies | -11 -10 -10 -------- Run | Yrd Mat Sub Total Allies . | . . . Largest Group . | . . . Highest-Rated Group . | . . . Highest-Rated Ally . | . . . Total Orders . | . . . Ally Attacks . | . . . Total Damage . | . . . Kills . | . . . Allies Corrupted . | . . . Allies Melted . | . . . Intel | -11 -10 -10 ------- Run | Yrd Mat Sub Robot Analysis Total 1 | . 1 . Derelict Logs Recovered 1 | . . 1 Drone Launches . | . . . Drone Recoveries . | . . . Exploration | -11 -10 -10 ------------- Run | Yrd Mat Sub Turns Passed 3325 | 117 1016 2192 Spaces Moved 1592 | 60 384 1148 Core 4 | 4 . . Treads 1588 | 56 384 1148 Legs . | . . . Wheels . | . . . Hover . | . . . Flight . | . . . Fastest Speed 50 | 50 160 160 Average Speed 159 | 158 160 160 Slowest Speed 200 | 200 160 160 Overloaded Moves . | . . . Propulsion Burnouts . | . . . Robots Hopped . | . . . Cave-ins Triggered . | . . . Exploration Rate (%) 46 | 4 53 82 Regions Visited 2 Branch Regions 1 Pre-discovered Areas 1 | . . 1 Known Exits Taken . | . . . Unknown Exits Taken 2 | 1 1 . Scrap Searched 6 | . . 6 Spaces Dug 5 | . 5 . Terrain Destroyed 27 | . 19 8 Melee . | . . . Projectile . | . . . AOE 27 | . 19 8 Terrain Rammed . | . . . Walls Destroyed . | . . . Machines Disabled . | . . . Actions | -11 -10 -10 --------- Run | Yrd Mat Sub Total 2204 | 75 745 1384 Wait 419 | 3 318 98 Move 1590 | 59 383 1148 Hop . | . . . Pick Up 21 | 4 7 10 Fast Attach 12 | 7 3 2 Attach 2 | . . 2 Detach 1 | . 1 . Swap 10 | . 3 7 Drop 26 | . 7 19 Fire 111 | 2 23 86 Melee . | . . . Ram . | . . . Kick . | . . . Crush . | . . . Escape Stasis . | . . . Rewire . | . . . Trap 1 | . . 1 Miscellaneous 11 | . . 11 Route ------- -11/Scrapyard -10/Materials (discovered 6 exits: *Mat x3 / *Min x2 / *Sub) -10/Subcaves (discovered 2 exits: [*Mat x2]) History --------- Turn | Location | Event 29 | -11/Scrapyard | Discovered new exit (range 15) 118 | -11/Scrapyard | Entered Materials 174 | -10/Materials | Discovered new exit (range 10) 287 | -10/Materials | Discovered new exit (range 11) 303 | -10/Materials | Build established: Mutant 470 | -10/Materials | Identified exit to Materials 470 | -10/Materials | Identified exit to Mines 470 | -10/Materials | Central database locked down 1128 | -10/Materials | Discovered new exit (range 5) 1134 | -10/Materials | Entered Subcaves 1419 | -10/Subcaves | Learned Materials emergency access door positions 1567 | -10/Subcaves | A swath of the cavern ceiling suddenly collapsed 1894 | -10/Subcaves | Disturbed a concealed Subdweller 1994 | -10/Subcaves | Disturbed a concealed Subdweller 2081 | -10/Subcaves | Core integrity fell below 50% 2153 | -10/Subcaves | Discovered new exit (range 11) 2287 | -10/Subcaves | Shifting Twisted Machinery released Sub. Monowheel 2370 | -10/Subcaves | Ambushed by angry Subdweller bent on revenge 2408 | -10/Subcaves | Core integrity fell below 20% 2591 | -10/Subcaves | Shifting Twisted Machinery released Barrage Gun 2707 | -10/Subcaves | Visited 4L-MR0's lab 2729 | -10/Subcaves | Found Flightbrick 2798 | -10/Subcaves | Shifting Twisted Machinery released Flamer 3004 | -10/Subcaves | Learned location of Zion (-6) 3004 | -10/Subcaves | Met a Zionite searching for "candidates" 3031 | -10/Subcaves | Discovered new exit (range 11) 3040 | -10/Subcaves | Shifting Twisted Machinery released Battle Cannon 3169 | -10/Subcaves | Shifting Twisted Machinery released Piercing Trap 3326 | -10/Subcaves | Destroyed by NW-XAI(R) with Subdweller Machine Gun Last Messages --------------- Flamer falls loose from the Twisted Machinery. 02885_ Installed Piercing Trap. 02902_ Scrap Shield Fragment affixed to Scrap Shield (+43). 02917_ PD-3F1(R) destroyed. 02920_ Acquired 54 matter. 02923_ Scrap Shield Fragment affixed to Scrap Shield (+10). 02960_ CE-D91(z): "She is not going to be happy we haven't found any suitable candidates yet." 03004_ CE-D91(z): "Hey you! It's really dangerous down here, I feel that you could die at any moment. For your health and safety might I suggest a trip to Zion?" World map updated: -6/Zion. 03031_ EXIT=FOUND Battle Cannon falls loose from the Twisted Machinery. Piercing Trap falls loose from the Twisted Machinery. Map ----- +----------------------------------------------------+ | #??? ???????" = ##???????????? | | #????# ?# # # #" ! * #???????????? | | ###?### " & # ### ##??????????? | | ##?## ## "!&# # ###### #??????????? | | ## ### # # # ## ## #??## #??????????? | | ##???##?######## ## ##??# ##??????????? | | #??????????## # ## #### ###????????? | | # #?????????## ## # # #????????? | | # ##?????????# ## #????????? | | ###??????????## ##### ## ##????????? | | ##????????????# ##???######### ##?????????? | | ###???????????## "#????##??????# ##??????????? | | #???????????## #???# ##?????###???????????? | | """"#??????# """# #??? #?###???????????????? | | # ="#####??#""" # ##?? ## ##??????????????? | | # " ""#??#"""## ##? ##?????????????? | | # """" #??#"""### ## ##????????????? | | #[ #??#""""# #????????????? | | #??#""" # #????????????? | | !* ##### ### ## ##???????????? | | ## ###""## # ##### #???????????? | | ## "##"" ?# #! ##???????????? | | #?# ""## #?# ###????????????? | | #?# """"" ##### # ##?????????????? | | ## """ ### # zz #?????????????? | | #?## " # # @ ###??????###????? | | ###??# " ## ### #????????# ##???? | | ??????# ### #?? ##???????## #???? | | ??????## # ##?## #?? #??####??# ##???? | | ???????## ####???## #??? ##?## #### #????? | | ?######## ## #####???## #??? #### ## #????# | | ## ## ##### ##??# #????# ?# #???## | | # #### #??# #?????# #?## ##### | | ## ## ## #?## RR####### ### | | ?## ### ## ### # # ## ## | | ??# #?# "##""] " " #### | | ??# #?# ####" "" ###??# ## | | ??# ##?## #### ### # #### ## ##???# ## | | ??###???#### " ## "###??###### ##???## ## | | ???????????#"&""""" <" #####????## #????#### | | ???????????##" """" """##"#???#### #??????? | | ????????????##" " " "##### ## ##????? | | ?????????????## " """ " ##??? | | ??????????????### " " #??? | | ????????????????####### #### #??# ## | | ??????????????????????## #??## #?# ?# | | ???????????????????????# #???# #?# ?? | | ??????????????????????#" ####???# ##? ?? | | ??????????????????????########??????# ##??###?? | | ????????????????????????????????????## ##???????? | +----------------------------------------------------+ Best States ------------- Heat Dissipation 25 Energy Generation 15 Energy Capacity 250 Matter Stores 300 Matter Capacity 300 Sight Range 16 Terrain Scan Density 10 Armor Coverage 800 Evasion (%) 40 Targeting Accuracy 5 Recoil Reduction 2 Item Schematics ----------------- None Robot Schematics ------------------ None Fabricated ------------ Nothing Alien Tech Used ----------------- None Achievements -------------- None Challenges ------------ None Game ------ Seed LargeSiegeSword Manual? 0 Play Time 00:15:46 Cumulative 298.8 hours Start 2024.08.12 @ 17:24:17 End 2024.08.12 @ 17:39:51 Sessions 1 Manual Loads 0 Difficulty Rogue Special Mode None Game No. 300 Rogue 295 Adventurer 5 Explorer 0 Win Type - Total 5 Types 4/0/0/1/0/0/0/0/0 Lore% 63 Gallery% 79 Achievement% 66 Wizard Run 0 Options --------- Layout 1 ASCII 0 Keyboard 0 Movement Arrows Keybinds 0 Fullscreen 1 Font 24/Terminus Map View 50x35 Zoom Use 0% Tactical HUD 1 Map Filters NONE Filters NONE Steam 1 RUN: 6fdb8f11-2774-4e5f-b22e-410e4b3782c6